Cogmind - Beta 14 @@@ ROGUE MODE // 2024.08.25 @ 21:31:51 Player: Syanka Result: Destroyed by G-47 Trooper with Particle Gun Performance ------------- Evolutions (0) 0 Regions Visited (4) 800 Robots Destroyed (35) 175 Value Destroyed (538) 538 Prototype IDs (23) 460 Alien Tech Used (0) 0 Bonus (367) 367 TOTAL SCORE: 2340 Bonus ------- Follower Combat Kills 67 Aligned with FarCom 300 Cogmind --------- Core Integrity 0/250 Matter 290/300 Energy 80/125 System Corruption 1% Temperature Cool (85) Movement Treading (240) Ox1 Location -9/Mines Parts ------- > --- POWER (1) -------- Light Ion Engine > --- PROPULSION (2) --- Light Treads Light Treads > --- UTILITY (2) ------ Improved Heat Sink High-capacity Storage Unit > --- WEAPON (2) ------- Medium Laser Medium Laser > --- INVENTORY (20) --- Light Treads Light Treads High-capacity Battery (250) Medium Matter Pod (100) Seismic Detector Transport Network Coupler Particle Gun Guided Plasma Cannon Light Assault Rifle Light Assault Rifle Rocket Launcher Datajack Mining Laser Hammer Proton Bomb Trap Proton Bomb Trap Proton Bomb Trap Peak State ------------ > --- POWER ------------ Light Angular Momentum Engine > --- PROPULSION ------- Light Treads Light Treads > --- UTILITY ---------- Improved Heat Sink High-capacity Storage Unit > --- WEAPON ----------- Particle Gun Particle Gun > --- INVENTORY -------- Ion Engine Light Ion Engine Light Treads Light Treads Light Treads Improved Heat Sink High-capacity Battery Medium Matter Pod Seismic Detector Transport Network Coupler Medium Laser Medium Laser Light Assault Rifle Rocket Launcher Datajack Mining Laser Hammer Proton Bomb Trap Proton Bomb Trap Proton Bomb Trap [Rating: 17] Favorites ----------- Power Ion Engine Engine Ion Engine Propulsion Light Treads Treads Light Treads Utility High-capacity Storage Unit Device Seismic Detector Storage High-capacity Storage Unit Weapon Particle Gun Energy Gun Particle Gun Ballistic Gun Light Assault Rifle Launcher Rocket Launcher Build | -11 -10 -10 -10 -9 ------- Run | Yrd Mat Min Exi Min Slots Evolved . | . . . . . Power . | . . . . . Propulsion . | . . . . . Utility . | . . . . . Weapon . | . . . . . Parts Attached 38 | 9 11 14 . 4 Power 4 | 2 . 1 . 1 Engine 4 | 2 . 1 . 1 Core . | . . . . . Reactor . | . . . . . Propulsion 5 | 2 1 2 . . Treads 5 | 2 1 2 . . Leg . | . . . . . Wheel . | . . . . . Hover . | . . . . . Flight . | . . . . . Utility 19 | 3 8 8 . . Device 16 | 2 6 8 . . Storage 3 | 1 2 . . . Processor . | . . . . . Hackware . | . . . . . Protection . | . . . . . Artifact . | . . . . . Weapon 10 | 2 2 3 . 3 Energy Gun 7 | 1 2 2 . 2 Energy Cannon . | . . . . . Ballistic Gun 2 | 1 . 1 . . Ballistic Cannon . | . . . . . Launcher 1 | . . . . 1 Special Weapon . | . . . . . Impact Weapon . | . . . . . Slashing Weapon . | . . . . . Piercing Weapon . | . . . . . Special Melee Weapon . | . . . . . Unidentified Prototypes . | . . . . . Parts Lost 3 | . . 2 . 1 Power 1 | . . . . 1 Propulsion . | . . . . . Utility 1 | . . 1 . . Weapon 1 | . . 1 . . Highest Loss Streak 2 | . . 2 . 1 To Critical Strikes . | . . . . . Average Slot Usage (%) 99 | . 99 99 100 99 Engine 13 | . 14 14 14 13 Treads 28 | . 28 28 28 28 Device 13 | . 13 13 14 14 Storage 14 | . 14 14 14 14 Energy Gun 23 | . 24 26 14 27 Ballistic Gun 4 | . 3 . 14 . Peak Build Rating 17 | 7 11 17 16 16 Average Rating 11 | 6 8 14 15 14 On Entrance 9 | . 7 10 15 16 Naked Turns . | . . . . . Heaviest Build 56 | 14 51 56 54 54 Greatest Support 40 | 40 40 40 40 40 Greatest Overweight (x) 1 | . 1 1 1 1 Average Overweight (x) . | . . 1 1 1 Largest Inventory Capacity 20 | 8 20 20 20 20 Average Capacity 17 | 7 16 20 20 20 Most Carried 20 | 6 17 20 18 18 Average Carried 14 | 4 11 19 17 18 Final Capacity 20 | 8 20 20 20 20 Final Carried 18 | 6 17 17 18 17 Class Distribution -------------------- 71% | Mutant 28% | Scavenger-Mutant Dominant Class ---------------- Mutant | -10/Materials Mutant | -10/Mines Scavenger-Mutant | -10/Exiles Mutant | -9/Mines Resources | -11 -10 -10 -10 -9 ----------- Run | Yrd Mat Min Exi Min Matter Collected 745 | 307 232 140 . 66 Remotely . | . . . . . Salvage Created 903 | 210 431 196 . 66 Parts 70 | 21 18 22 . 9 Haulers Intercepted 2 | . 2 . . . Recyclers Shooed 2 | 1 1 . . . Parts Field Recycled . | . . . . . Retrieved Matter . | . . . . . Parts Self-Destructed . | . . . . . Prevented . | . . . . . Kills | -11 -10 -10 -10 -9 ------- Run | Yrd Mat Min Exi Min Combat Hostiles Destroyed 23 | . 6 13 . 4 Guns 20 | . 6 13 . 1 AOE 3 | . . . . 3 Classes Destroyed 6 | 2 3 1 . . Tunneler 7 | 7 . . . . Hauler 2 | . 2 . . . Recycler 2 | 1 1 . . . Operator 1 | . 1 . . . Swarmer 16 | . . 13 . 3 Grunt 7 | . 6 . . 1 Best Kill Streak 3 | 3 2 3 . 3 Combat Bots Only 3 | . 2 3 . 3 Max Kills in Single Turn 2 | 1 2 2 . 2 Gunslinging 1 | . 1 1 . . Exploded 2 | . . . . 2 Melee . | . . . . . Uniques/NPCs Destroyed . | . . . . . Combat | -11 -10 -10 -10 -9 -------- Run | Yrd Mat Min Exi Min Hostile Shots Fired 134 | . 42 72 . 20 Missed 37 | . 10 18 . 9 Damage Taken 1054 | . 460 441 . 153 Core 254 | . 94 91 . 69 Absorbed by Shields . | . . . . . Regen/Repaired (Parts) 17 | . 17 . . . Core Remaining (%) 100 | 100 . . . . Volleys Fired 95 | 17 39 30 . 9 Largest 2 | 2 2 2 . 2 Hottest 130 | 70 115 130 . 100 Shots Fired 180 | 34 78 52 . 16 Gun 178 | 34 78 52 . 14 Cannon . | . . . . . Launcher 2 | . . . . 2 Special . | . . . . . Kinetic 28 | 17 11 . . . Thermal 150 | 17 67 52 . 14 Explosive 2 | . . . . 2 Electromagnetic . | . . . . . Robot Hit Streak 13 | 5 13 4 . 5 Robot Miss Streak 4 | 1 2 4 . 2 Penetration Max . | . . . . . Secondary Targets 4 | . 1 3 . . Max Gunslinging Chain 1 | . 1 1 . . Shots Hit Robots 113 | 19 59 24 . 11 Core Hits 52 | 11 22 13 . 6 Critical Kills . | . . . . . Critical Parts Destroyed . | . . . . . Critical Strikes 7 | 1 3 3 . . Burn 7 | 1 3 3 . . Melee Attacks . | . . . . . Impact . | . . . . . Slashing . | . . . . . Piercing . | . . . . . Sneak Attacks . | . . . . . Combat Hostiles . | . . . . . Follow-up Attacks . | . . . . . Damage Inflicted 1639 | 212 766 379 . 282 Guns 1488 | 212 761 379 . 136 Cannons . | . . . . . Explosions 146 | . . . . 146 Melee . | . . . . . Ramming 5 | . 5 . . . Kinetic 183 | 88 95 . . . Thermal 1305 | 124 666 379 . 136 Explosive 146 | . . . . 146 Electromagnetic . | . . . . . Impact . | . . . . . Slashing . | . . . . . Piercing . | . . . . . Highest Corruption 1 | . 1 1 1 1 Average Corruption 1 | . 1 1 1 1 Corruption Purged . | . . . . . Corruption Blocked . | . . . . . Effects 19 | . 9 5 3 2 Message Errors 4 | . 1 2 1 . Matter Fused 5 | . 2 1 1 1 Heat Flow Errors 2 | . 1 . . 1 Energy Discharges 2 | . 2 . . . Data Loss (minor) 5 | . 2 2 1 . Alerts 1 | . 1 . . . Overload Shots . | . . . . . Overflow Damage . | . . . . . Projectiles . | . . . . . Explosions . | . . . . . Melee . | . . . . . Knockbacks . | . . . . . Impact . | . . . . . Kinetic . | . . . . . Secondary . | . . . . . Self-Inflicted Damage 20 | . . . . 20 Shots 1 | . . . . 1 Rammed 1 | . 1 . . . Targets Rammed 1 | . 1 . . . Kicked . | . . . . . Crushed . | . . . . . Highest Temperature 405 | 90 405 320 . 195 Average Temperature 89 | 33 99 114 . 40 Received Heat Transfer 387 | . 276 12 . 99 Effects 3 | . 2 1 . . Shutdowns 1 | . . 1 . . Energy Bleed 1 | . 1 . . . Damage (minor) 1 | . 1 . . . Siege Activations . | . . . . . Robots Corrupted . | . . . . . Combat Hostiles . | . . . . . Parts Fried . | . . . . . Impact Corruptions . | . . . . . Robots Melted . | . . . . . Combat Hostiles . | . . . . . Parts Melted 10 | 1 4 2 . 3 Heat Transferred 4033 | 444 2035 1147 . 407 Parts Sabotaged . | . . . . . Parts Stolen . | . . . . . Parts Stripped . | . . . . . Power Chain Reactions . | . . . . . Alert | -11 -10 -10 -10 -9 ------- Run | Yrd Mat Min Exi Min Peak Influence 201 | 40 151 201 . 116 Initial 26 | . 26 6 . . Average 54 | 16 32 87 . 87 Maximum Alert Level 1 | . . 1 . . Low Security (%) 96 | 100 100 90 . 100 Level 1 3 | . . 9 . . Level 2 . | . . . . . Level 3 . | . . . . . Level 4 . | . . . . . Level 5 . | . . . . . High Security . | . . . . . Max Security . | . . . . . Squads Dispatched 1 | . 1 . . . Investigation . | . . . . . Extermination . | . . . . . Reinforcement 1 | . 1 . . . Assault . | . . . . . Garrison . | . . . . . Intercept . | . . . . . Searches Triggered . | . . . . . Construction Impeded . | . . . . . Haulers Reinforced . | . . . . . Active Scanning Responses . | . . . . . Cargo Convoy Interrupts . | . . . . . Stealth | -11 -10 -10 -10 -9 --------- Run | Yrd Mat Min Exi Min Distress Signals 1 | . 1 . . . Communications Jammed . | . . . . . Distress Signals . | . . . . . Times Spotted 43 | . 17 19 . 7 Peak Tracking Total 7 | . 7 4 . 3 Tactical Retreats 5 | . 3 1 . 1 Traps | -11 -10 -10 -10 -9 ------- Run | Yrd Mat Min Exi Min Traps Triggered 1 | . 1 . . . Indirectly . | . . . . . Trap Hack Attempts . | . . . . . Triggered . | . . . . . Disarmed . | . . . . . Reprogrammed . | . . . . . Reused . | . . . . . Traps Extracted . | . . . . . Installed . | . . . . . Triggered . | . . . . . Most Traps Carried 3 | . . 3 3 3 Machines | -11 -10 -10 -10 -9 ---------- Run | Yrd Mat Min Exi Min Machines Disabled 2 | . . 2 . . Max in Single Turn 1 | . . 1 . . Machines Repaired . | . . . . . Machines Dismantled . | . . . . . Machines Sabotaged . | . . . . . Overloaded Fab Kills . | . . . . . Hacking | -11 -10 -10 -10 -9 --------- Run | Yrd Mat Min Exi Min Machines Accessed 7 | . 5 . 2 . Terminals 3 | . 3 . . . Fabricators . | . . . . . Repair Stations 1 | . 1 . . . Recycling Units 1 | . 1 . . . Scanalyzers . | . . . . . Garrison Access . | . . . . . Total Hacks 15 | . 13 . 2 . Successful 8 | . 6 . 2 . Failed 7 | . 7 . . . Catastrophic 2 | . 2 . . . Database Lockouts . | . . . . . Manual 6 | . 5 . 1 . Terminals 7 | . 7 . . . Fabricators . | . . . . . Repair Stations 2 | . 2 . . . Recycling Units 4 | . 4 . . . Scanalyzers . | . . . . . Garrison Access . | . . . . . Terminal Hacks 3 | . 1 . 2 . Record 1 | . . . 1 . Locate Traps 1 | . 1 . . . Derelict Proto ID Bank 1 | . . . 1 . Fabricator Hacks . | . . . . . Repair Station Hacks 2 | . 2 . . . Scan Component 1 | . 1 . . . Repair 1 | . 1 . . . Recycling Unit Hacks 1 | . 1 . . . Retrieve Components 1 | . 1 . . . Scanalyzer . | . . . . . Garrison Access Hacks . | . . . . . Unauthorized Hacks 2 | . 2 . . . Terminals 2 | . 2 . . . Botnet 1 | . 1 . . . Operators 1 | . 1 . . . Fabricators . | . . . . . Repair Stations . | . . . . . Recycling Units . | . . . . . Scanalyzers . | . . . . . Garrison Access . | . . . . . Data Cores Recovered . | . . . . . Used . | . . . . . Hacking Detections 4 | . 4 . . . Full Trace Events . | . . . . . Feedback Events . | . . . . . Feedback Blocked . | . . . . . Robot Schematics Acquired . | . . . . . Robots Built . | . . . . . Authchips . | . . . . . Time . | . . . . . Total Robot Build Rating . | . . . . . Part Schematics Acquired . | . . . . . Parts Built . | . . . . . Authchips . | . . . . . Time . | . . . . . Total Part Build Rating . | . . . . . Parts Repaired 1 | . 1 . . . Time 26 | . 26 . . . Parts Recycled . | . . . . . Recycled Matter . | . . . . . Retrieved Matter . | . . . . . Retrieved Components 2 | . 2 . . . Parts Scanalyzed . | . . . . . Part Schematics Acquired . | . . . . . Parts Damaged . | . . . . . Bothacking | -11 -10 -10 -10 -9 ------------ Run | Yrd Mat Min Exi Min Used RIF Installer . | . . . . . Robots Hacked . | . . . . . Non-combat . | . . . . . Combat . | . . . . . Robot Hacks Applied . | . . . . . Relay Couplers Released . | . . . . . Fabnet Peak Effective % . | . . . . . Robots Rewired . | . . . . . Allies Hacked . | . . . . . Hacks Repelled . | . . . . . Allies | -11 -10 -10 -10 -9 -------- Run | Yrd Mat Min Exi Min Total Allies 3 | . . 3 . . Largest Group 3 | . . 3 . . Highest-Rated Group 40 | . . 40 . . Highest-Rated Ally 16 | . . 16 . . Total Orders . | . . . . . Ally Attacks 24 | . . 24 . . Total Damage 269 | . . 269 . . Kills 4 | . . 4 . . Allies Corrupted . | . . . . . Allies Melted . | . . . . . Intel | -11 -10 -10 -10 -9 ------- Run | Yrd Mat Min Exi Min Robot Analysis Total . | . . . . . Derelict Logs Recovered . | . . . . . Drone Launches . | . . . . . Drone Recoveries . | . . . . . Exploration | -11 -10 -10 -10 -9 ------------- Run | Yrd Mat Min Exi Min Turns Passed 3400 | 232 1403 964 515 286 Spaces Moved 1337 | 108 567 346 215 101 Core 4 | 4 . . . . Treads 1333 | 104 567 346 215 101 Legs . | . . . . . Wheels . | . . . . . Hover . | . . . . . Flight . | . . . . . Fastest Speed 50 | 50 160 240 240 240 Average Speed 220 | 155 208 240 240 240 Slowest Speed 240 | 160 240 240 240 240 Overloaded Moves . | . . . . . Propulsion Burnouts . | . . . . . Robots Hopped . | . . . . . Cave-ins Triggered . | . . . . . Exploration Rate (%) 52 | 5 88 78 61 31 Regions Visited 4 Branch Regions 3 Pre-discovered Areas 1 | . . . 1 . Known Exits Taken . | . . . . . Unknown Exits Taken 4 | 1 1 1 1 . Scrap Searched 3 | . . 2 . 1 Spaces Dug . | . . . . . Terrain Destroyed 14 | . . . . 14 Melee . | . . . . . Projectile . | . . . . . AOE 14 | . . . . 14 Terrain Rammed . | . . . . . Walls Destroyed . | . . . . . Machines Disabled . | . . . . . Actions | -11 -10 -10 -10 -9 --------- Run | Yrd Mat Min Exi Min Total 1615 | 137 709 426 215 128 Wait 109 | . 69 26 . 14 Move 1333 | 107 566 345 214 101 Hop . | . . . . . Pick Up 24 | 4 14 5 1 . Fast Attach 10 | 7 2 1 . . Attach 2 | . . 1 . 1 Detach . | . . . . . Swap 26 | 2 9 12 . 3 Drop 15 | . 9 6 . . Fire 95 | 17 39 30 . 9 Melee . | . . . . . Ram . | . . . . . Kick . | . . . . . Crush 1 | . 1 . . . Escape Stasis . | . . . . . Rewire . | . . . . . Trap . | . . . . . Miscellaneous . | . . . . . Route ------- -11/Scrapyard -10/Materials (discovered 5 exits: [*Mat x3] / [*Min x2]) -10/Mines (discovered 2 exits: [*Mat] / *Exi) -10/Exiles -9/Mines History --------- Turn | Location | Event 13 | -11/Scrapyard | Discovered new exit (range 16) 233 | -11/Scrapyard | Entered Materials 317 | -10/Materials | Build established: Mutant 378 | -10/Materials | Discovered new exit (range 14) 531 | -10/Materials | Discovered new exit (range 13) 892 | -10/Materials | Repaired Seismic Detector 1338 | -10/Materials | Discovered new exit (range 5) 1414 | -10/Materials | Discovered new exit (range 10) 1577 | -10/Materials | Discovered new exit (range 9) 1636 | -10/Materials | Entered Mines 1655 | -10/Mines | Met a Derelict bent on vengeance 1706 | -10/Mines | Found a hidden stash of uninstalled traps 1806 | -10/Mines | Assisted by bots powering up and referring to "LRC-V3" 2320 | -10/Mines | Received a Rocket Launcher from a helpful Derelict 2401 | -10/Mines | Core integrity fell below 50% 2413 | -10/Mines | Build established: Scavenger-Mutant 2460 | -10/Mines | Discovered new exit (range 11) 2591 | -10/Mines | Deemed a non-threat by the Exiles lab entrance 2591 | -10/Mines | Discovered new exit (range 5) 2600 | -10/Mines | Entered Exiles 2656 | -10/Exiles | Met 8R-AWN 2701 | -10/Exiles | Met EX-HEX 2768 | -10/Exiles | Met EX-BIN 2795 | -10/Exiles | Aligned with FarCom system 2797 | -10/Exiles | Given EX-Vault access code 2852 | -10/Exiles | Opened EX-Vault 2867 | -10/Exiles | Found Gui. Plasma Cannon 2916 | -10/Exiles | Warned to stay clear of 0b10 Research branches 2995 | -10/Exiles | Met EX-DEC 3007 | -10/Exiles | Learned location of Zion (-6) 3089 | -10/Exiles | Discovered new exit (range 12) 3115 | -10/Exiles | Left Exiles lab with Gui. Plasma Cannon 3115 | -10/Exiles | Entered Mines 3396 | -9/Mines | Core integrity fell below 20% 3401 | -9/Mines | Destroyed by G-47 Trooper with Particle Gun Last Messages --------------- 03117_ S-10 Pest destroyed. 03129_ System corrupted: Heat flow error (+225). 03129_ Acquired 10 matter. 03132_ The unstable cave ceiling collapses. 03150_ Searching scrap... 03150_ Found Flight Unit. 03150_ Found Authchip [Weapon]. 03150_ Found 54 Matter. 03151_ Acquired 51 matter. 03187_ System corrupted: Matter fused (-5). 03334_ Aluminum Leg melted. 03334_ Ion Engine melted. 03334_ Heat Sink melted. 03334_ G-34 Mercenary destroyed. 03372_ R-06 Scavenger collects Sml. Laser. 03373_ Acquired 5 matter. 03376_ R-06 Scavenger collects Aluminum Leg. 03393_ Critical hit (Burn: +37). 03399_ Lgt. Angular Momentum Engine destroyed. 03401_ Critical hit (Burn: +37). Map ----- +----------------------------------------------------+ | ?????????????????????????????????????????????????? | | ?????????????????????????????????????????????????? | | ?????????????????????????????????????????????????? | | ?????????????????????????????????????????????????? | | ?????????????????????????????????????????????????? | | ?????????????????????????????????????????????????? | | ???????##????????????????????????????????????????? | | ??????## ????????????????????????????????????????? | | ??????# ???????????????????????????????????????? | | ??????# ???????????????????????????????????????? | | ??????# ??????????????????????????????????????? | | ???#?## ??????????????????????????????????????? | | # ## # ??????####????????????????????????????? | | ####### ##???????????????????????????? | | ##??????????????????????????? | | ????### """ #### #??????????????????????????? | | ??????## """ #??## ##?????????????????????????? | | ???????# """ #???## ##????????????????????????? | | ???????# #????## ##???????????????????????? | | ???????## #####?# #???????????????????????? | | ????????### #?# #???????????????????????? | | ??????????# ### #?# """ #???????????????????????? | | ???????#### #????## """ ##??????????????????????? | | ???????# ### ## """ ####???????????????????? | | ##?????# ## #???????????????????? | | ####??# #### @ #???????????????????? | | # #### ####g g ####### #???????????????????? | | * =%! #??????#%#???????????????????? | | #### ##### #???????# #???????????????????? | | ##??# #???#####???????## ##??????????????????? | | = ##???# #????#####?????## ##?????????????????? | | [##????# #???## ####### ##????????????????? | | # #?????# #???# ## ###??????????????? | | #?????? #??## ##?????????????? | | ##????## #### ## #?????????????? | | ##?????# ########## #?????????????? | | ????# ##????????# #?????????????? | | ???# #?????????# #?????????????? | | ???# #?????????## ##?????????????? | | ??? #??????????######??????????????? | | ??? #??????????????????????????????? | | ???? ## ??????????????????????????????? | | ???? ???### # ??????????????????????????????? | | ??????????## #####??????????????????????????????? | | ???????????## ???????????????????????????????????? | | ????????????#????????????????????????????????????? | | ?????????????????????????????????????????????????? | | ?????????????????????????????????????????????????? | | ?????????????????????????????????????????????????? | | ?????????????????????????????????????????????????? | +----------------------------------------------------+ Best States ------------- Heat Dissipation 39 Energy Generation 18 Energy Capacity 250 Matter Stores 300 Matter Capacity 300 Sight Range 16 Terrain Scan Density 10 Evasion (%) 40 Recoil Reduction 2 Item Schematics ----------------- None Robot Schematics ------------------ None Fabricated ------------ Nothing Alien Tech Used ----------------- None Achievements -------------- None Challenges ------------ None Game ------ Seed DisruptorTrackerWarhead Manual? 0 Play Time 00:16:43 Cumulative 96.9 hours Start 2024.08.25 @ 21:16:06 End 2024.08.25 @ 21:31:51 Sessions 1 Manual Loads 0 Difficulty Rogue Special Mode None Game No. 65 Rogue 52 Adventurer 13 Explorer 0 Win Type - Total 1 Types 1/0/0/0/0/0/0/0/0 Lore% 36 Gallery% 52 Achievement% 44 Wizard Run 0 Options --------- Layout 2 ASCII 0 Keyboard 1 Movement Numpad Keybinds 0 Fullscreen 2 Font 16/Swanston Map View 55x47 Zoom Use 0% Tactical HUD 1 Map Filters NONE Filters NONE Steam 0 RUN: c6bc12e0-f038-4684-893c-875da83102e5